Workbook

Sheet Ср. балл
B2: Середній конкурсний бал по факультету для груп, де навчається 1 студент за кошти держзамовлення
A4: 1 курс бакалавр | B4: =AVERAGE('МЧМ-21'!B7:B9,'ЕПА-21'!B7,'АВ-21'!B7,'ХТ-20-1'!B7,'ХТ-20-1'!B7,'МО-21ск'!B7:B9,'МЧМ-21ск'!B7:B8,'ЕПА-21ск'!B7:B9,'АВ-21ск'!B23,'ХТ-21ск'!B7) -> 149.1220625
A5: 1 курс бакалавр ск | B5: =AVERAGE('МО-21м'!B7:B8,'МЧМ-21м'!B7,'ЕПА-21м'!B7:B8) -> 143.596
A6: 1 курс магістри

Sheet МО-21
A2: МО-21
A5: ПІБ | B5: Конкурсний бал
B6: Оцінка
A7: ЖУК Кирило Олександрович | B7: 162.792
A8: КОШКІН Сергій Віталійович | B8: 142.535
A9: СІВЕРІН Андрій Олександрович | B9: 144.928
A10: ЦИГАНКОВ Родіон Ігорович | B10: 184.359
A14: .
A15: Середнє значення | B15: =AVERAGE(B7:B10) -> 158.6535
A16: Всього | B16: 4 | C16: =B16*0.43 -> 1.72

Sheet МЧМ-21
A2: МЧМ-21
A5: ПІБ | B5: Конкурсний бал
B6: Оцінка
A7: ЗАЯЦЬ Катерина Андріївна | B7: 157.59
A8: КРАВЕЦЬ Єгор Олександрович | B8: 170.001
A9: ОТОРВІН Семен Павлович | B9: 176.036
A10: САВЧЕНКО Назар Олегович | B10: 159.909
A11: ШУЛЬГА Андрій Олегович | B11: 160.95
A14: .
A15: Середнє значення | B15: =AVERAGE(B7:B11) -> 164.8972
A16: Всього | B16: 5 | C16: =B16*0.43 -> 2.15

Sheet ЕПА-21
A2: ЕПА-21
A5: ПІБ | B5: Конкурсний бал
B6: Оцінка
A7: ГОРОБЕЦЬ Володимир Сергійович | B7: 150.754
A8: ГРИЦЕНКО Антон Олександрович | B8: 153.714
A9: КАРПЕКІН Дмитро Васильович | B9: 142.8
A10: МОСКОВИХ Олександр Олександрович | B10: 155.958
A11: СІДАРОК Олександр Олександрович | B11: 151.164
A12: ШИПОВСЬКИЙ Кирило Михайлович | B12: 156.684
A14: .
A15: Середнє значення | B15: =AVERAGE(B7:B12) -> 151.8456667
A16: Всього | B16: 6 | C16: =B16*0.43 -> 2.58

Sheet АВ-21
A2: АВ-21
A5: ПІБ | B5: Конкурсний бал
B6: Оцінка
A7: АММОСОВ Валерій Юрійович | B7: 178.221
A8: НАСТУСЕНКО Поліна Андріївна | B8: 171.562
A9: ПИХТІН Анна Сергіївна | B9: 178.704
A10: СТАДНІЙЧУК Анна Михайлівна | B10: 176.972
A14: .
A15: Середнє значення | B15: =AVERAGE(B7:B10) -> 176.36475
A16: Всього | B16: 4 | C16: =B16*0.43 -> 1.72

Sheet ХТ-20-1
A2: ХТ-21
A5: ПІБ | B5: Конкурсний бал
B6: Оцінка
A7: ДОМБРОВ Роман Вадимович | B7: 146.488
A8: МИХАЙЛЕНКО Марина Артемівна | B8: 151.794
A9: ПАЩЕНКО Єлизавета Станіславівна | B9: 132.131
A10: ТКАЧ Олександр Данилович | B10: 185.919
A11: ФЕДУНЕЦЬ Юлія Ігорівна | B11: 174.891
A12: ЩЕРБАК Єлизавета Віталіївна | B12: 151.794
A14: .
A15: Середнє значення | B15: =AVERAGE(B7:B12) -> 157.1695
A16: Всього | B16: 6 | C16: =B16*0.43 -> 2.58

Sheet МО-21ск
A2: МО-21ск
A5: ПІБ | B5: Конкурсний бал
B6: Оцінка
A7: БАЛЮК Андрій Ігорович | B7: 146.5
A8: ЛАШКУЛ Вадим Андрійович | B8: 156
A9: МАРУЩАК Владислав Андрійович | B9: 150.625
A10: МИНЬЧУК Богдан Валерійович | B10: 155.25
A11: ПОЛУХІН Олексій Сергійович | B11: 113.875
A12: ПРОКОПЕНКО Марія Андріївна | B12: 117.875
A13: РОМАН Андрій Іванович | B13: 160.75
A14: СИДОРЕНКО Олексій Сергійович | B14: 115.5
A15: СЛІПЧЕНКО Вадим Павлович | B15: 124.625
A16: СОХНІЧ Максим Дмитрович | B16: 123.75
A17: ТАРАСОВ Іван Дмитрович | B17: 114.875
A18: УМАНСЬКИЙ Дмитро Володимирович | B18: 108.625
A19: ШЕЛЕСТ Денис Євгенійович | B19: 103.875
A20: ЯКОВЕНКО Олег Олександрович | B20: 160.375
A21: ЯЛОВИЙ Євгеній Ігорович | B21: 151
A30: Середнє значення | B30: =AVERAGE(B7:B21) -> 133.5666667
A31: Всього | B31: 15 | C31: =B31*0.43 -> 6.45

Sheet МЧМ-21ск
A2: МЧМ-21ск
A5: ПІБ | B5: Конкурсний бал
B6: Оцінка
A7: АРТЕМЕНКО Олександр Дмитрович | B7: 130.75
A8: ГРИНЕВИЧ Даніїл Олександрович | B8: 150.5
A9: ГРИЦЮТА Нікіта Романович | B9: 145.25
A10: КУДЕЛЯ Єлизавета Володимирівна | B10: 117.625
A11: ЛІСОВЕЦЬ Ольга Миколаївна | B11: 110.5
A12: МИХАЙЛЕНКО Микита Васильович | B12: 122.875
A13: НАУМЕНКО Денис Володимирович | B13: 156
A14: НЕСТЕРЕНКО Едуард Владиславович | B14: 120.25
A15: ПАВЛУШИН Олег Олександрович | B15: 132
A16: САВЧЕНКО Дмитро Анатолійович | B16: 142.5
A17: СОЛОМКО Андрій Сергійович | B17: 162.5
A18: ФУГОЛЬ Ігор Андрійович | B18: 167.25
A19: ФУГОЛЬ Ілля Андрійович | B19: 144.5
A20: ЧИЖОВА Світлана Валеріївна | B20: 144.5
A21: ЯРОВА Юлія Миколаївна | B21: 156.5
A23: Середнє значення | B23: =AVERAGE(B7:B21) -> 140.2333333
A24: Всього | B24: 15 | C24: =B24*0.43 -> 6.45

Sheet ЕПА-21ск
A2: ЕПА-21ск
A5: ПІБ | B5: Конкурсний бал
B6: Оцінка
A7: АКАЦАТ Владислав Сергійович | B7: 116.5
A8: ГУЗЕК Руслан Миколайович | B8: 126.875
A9: ДЯЧЕНКО Сергій Миколайович | B9: 131.875
A10: КАДИКАЛО Станіслав Андрійович | B10: 130
A11: МІТЯНІН Володимир Володимирович | B11: 128.125
A12: ОСТАПЧУК Павло Олегович | B12: 121
A13: СВЕТОВ Данило Артемович | B13: 137.875
A14: СОЛЕНКО Нікіта Костянтинович | B14: 133.625
A15: ШМАЛЬКО Іван Дмитрович | B15: 142.125
A16: ЩЕРБАНЮК Анна Володимирівна | B16: 127.375
A18: Середнє значення | B18: =AVERAGE(B7:B16) -> 129.5375
A19: Всього | B19: 10 | C19: =B19*0.43 -> 4.3

Sheet АВ-21ск
A2: АВ-21ск
A5: ПІБ | B5: Конкурсний бал
B6: Оцінка
A7: БАЛАБУХА Євгеній Олександрович | B7: 116.125
A8: БІЛЕНКО Назар Денисович | B8: 102.25
A9: ВОЛОШИН Дмитро Сергійович | B9: 135.125
A10: ЛЕБІДЬ Олег Сергійович | B10: 106.25
A11: МЕЛЬНИЧУК Олександр Станіславович | B11: 121
A12: ПАШКО Олег Сергійович | B12: 111.125
A13: РЯБЧЕЦЬ Богдан Андрійович | B13: 131.75
A14: СТРЄЛЬНІКОВ Олександр Михайлович | B14: 124.875
A15: ТАРАНЕНКО Віталій Андрійович | B15: 121.875
A16: ХОЛОД Микола Олександрович | B16: 120.125
A30: .
A31: Серенє значення | B31: =AVERAGE(B7:B16) -> 119.05
A32: Всього | B32: 10 | C32: =B32*0.43 -> 4.3

Sheet ХТ-21ск
A2: ХТ-21ск
A5: ПІБ | B5: Конкурсний бал
B6: Оцінка
A7: БЕСАРАБЧИК Єлизавета Мирославівна | B7: 150.75
A8: БРАЖНИК Євгенія Сергіївна | B8: 152.25
A9: ГОРПІНІЧ Катерина Василівна | B9: 119
A10: ПАВЛЕНКО Володимир Олександрович | B10: 135.125
A11: РЕП’ЯХ Анна Олександрівна | B11: 148.5
A12: ТЕРЕПА Денис Ігорович | B12: 150.5
A13: ТОНКОНОЖЕНКО Олег Олександрович | B13: 145.375
A14: ЧОРНИЙ Максим Віталійович | B14: 127.375
A17: Середнє значення | B17: =AVERAGE(B7:B14) -> 141.109375
A18: Всього | B18: 8 | C18: =B18*0.43 -> 3.44

Sheet МО-21м
A2: МО-21м
A5: ПІБ | B5: Конкурсний бал
B6: Оцінка
A7: ЖИРОВ Дмитро Олександрович | B7: 127.025
A8: КУПРІЯНОВ Артем Сергійович | B8: 144.075
A9: МАМАЄНКО Микола Костянтинович | B9: 133
A10: МАНЯХІН Дмитро Олександрович | B10: 128.765
A11: ПАНЧЕНКО Катерина Олександрівна | B11: 193.5
A12: ПАСАЦЬКИЙ Роман Олександрович | B12: 149.715
A13: ПЕРШИН Денис Володимирович | B13: 129.335
A14: ХОЛОДІЙ Валерій Дмитрович | B14: 119.135
A17: .
A18: Середнє значення | B18: =AVERAGE(AVERAGE(B7:B17)) -> 140.56875
A19: Всього | B19: 8 | C19: =B19*0.43 -> 3.44

Sheet МЧМ-21м
A2: МЧМ-21м
A5: ПІБ | B5: Конкурсний бал
B6: Оцінка
A7: АВЕРІН Артур Олександрович | B7: 142.255
A8: ЖИГАЛОВ Євген Андрійович | B8: 175.64
A9: КРАСНІКОВА Діана Сергіївна | B9: 157.68
A10: ПАЩЕНКО Владислав Євгенійович | B10: 185.23
A11: ПІЧУРІНА Ірина Юріївна | B11: 153.555
A12: ПУГАЧ Олександр Сергійович | B12: 153.615
A13: РІЗНІЧЕНКО Анатолій Юрійович | B13: 169.55
A14: ЯРЕМАКА Олександр Анатолійович | B14: 152.73
A18: Середнє значення | B18: =AVERAGE(B7:B15) -> 161.281875
A19: Всього | B19: 8 | C19: =B19*0.43 -> 3.44

Sheet ЕПА-21м
A2: ЕПА-21м
A5: ПІБ | B5: Конкурсний бал
B6: Оцінка
A7: ГОЛУБ Наталія Юріївна | B7: 140.86
A8: ЗЕЗЮЛЯ Вадим Борисович | B8: 163.765
A14: .
A15: Середнє значення | B15: =AVERAGE(AVERAGE(B7:B14)) -> 152.3125
A16: Всього | B16: 2 | C16: =B16*0.43 -> 0.86

Sheet АВ-21м
A2: АВ-21м
A5: ПІБ | B5: Конкурсний бал
B6: Оцінка
A7: НЕСТЕРОВ Сергій Сергійович | B7: 130.545
A8: ПУЦ Антон Олександрович | B8: 137.085
A9: СТАНЄВ Сергій Миколайович | B9: 126.925
A10: ТРАМАНА Вадим Сергійович | B10: 145.215
A14: .
A15: середнє значення | B15: =AVERAGE(B7:B14) -> 134.9425
A16: Всього | B16: 4 | C16: =B16*0.43 -> 1.72

Sheet ХТ-21м
A2: ХТ-21м
A5: ПІБ | B5: Конкурсний бал
B6: Оцінка
A7: БУРЦЕВ Владислав Олександрович | B7: 156.385
A8: СУПАТОВИЧ Вікторія Олександрівна | B8: 174.235
A9: ЩЕРБИНА Марія Вадимівна | B9: 154.575
A10: ЯГОТІН Артем Сергійович | B10: 155.665
A14: .
A15: Середнє значення | B15: =AVERAGE(B7:B10) -> 160.215
A16: Всього | B16: 4 | C16: =B16*0.43 -> 1.72
